bitfinex-derivatives/quotes_BNBF0:USTF0_20250401
["timestamp","ask_amount","ask_price","bid_price","bid_amount"]
[1743542945752,0.30137931,610.16,610.09,1.08579767]
[1743542946252,0.30137931,610.16,610.1,1.08579767]
[1743542946552,0.30137931,610.16,609.51,0.32813243]
[1743542946553,0.30137931,610.16,610.11,1.08579767]
[1743542946953,0.30137931,610.16,610.12,1.08579767]
[1743542947555,0.30137931,610.16,610.13,1.08579767]
[1743542947752,0.30137901,610.15,610.13,1.08579767]
[1743542947951,0.30137901,610.16,610.14,1.08579767]
[1743542948158,0.773,610.18,610.14,1.08579767]
[1743542948353,0.30137939,610.17,610.14,1.08579767]
[1743542948552,0.58667791,610.17,610.15,1.08579767]
[1743542948754,0.30137939,610.16,610.15,1.08579767]
[1743542951556,0.30137939,610.17,610.15,1.08579767]
[1743542951762,0.58667791,610.16,610.15,1.08579767]
[1743542955660,0.28529852,610.16,610.15,1.08579767]
[1743542957167,0.773,610.18,610.15,1.08579767]
[1743542957667,0.28529735,610.17,610.16,1.08579767]
[1743542960273,0.778,610.4,610.16,1.08579767]
[1743542960468,0.30137573,610.39,610.17,1.08579767]
[1743542960868,0.30137573,610.39,610.18,1.08579767]
[1743542961475,0.30137573,610.39,610.19,1.08579767]
[1743542961875,0.28526812,610.38,610.2,1.08579767]
[1743542962077,0.30137573,610.37,610.2,1.08579767]
[1743542962374,0.30137573,610.37,610.21,1.08579767]
[1743542962875,0.30137573,610.37,610.22,1.08579767]
[1743542963470,0.28526578,610.36,610.22,1.08579767]
[1743542963673,0.28526578,610.36,610.23,1.08579767]
[1743542963973,0.30137573,610.35,610.23,1.08579767]
[1743542964173,0.30137573,610.35,610.24,1.08579767]
[1743542964775,0.30137573,610.35,609.51,0.32813243]
[1743542965373,0.301372,610.34,609.52,1.08878136]
[1743542965576,0.301372,610.35,609.52,1.08878136]
[1743542965778,0.301372,610.34,609.53,1.08878136]
[1743542966075,0.301372,610.33,609.53,1.08878136]
[1743542966276,0.301372,610.35,609.54,1.08878136]
[1743542966477,0.301372,610.34,609.54,1.08878136]
[1743542966775,1.96,610.63,609.54,1.08878136]
[1743542966776,0.28534881,610.32,609.54,1.08878136]
[1743542966975,0.301372,610.31,609.54,1.08878136]
[1743542967175,0.301372,610.31,609.55,1.08878136]
[1743542967778,0.301372,610.31,609.56,1.08878136]
[1743542967978,0.995,610.3,609.56,1.08878136]
[1743542968277,0.301372,610.29,609.57,1.08878136]
[1743542968477,0.301372,610.29,609.58,1.08878136]
[1743542969077,0.301372,610.29,609.59,1.08878136]
[1743542969676,0.28534881,610.28,609.6,1.08878136]
[1743542969873,0.301372,610.27,609.6,1.08878136]
[1743542970074,0.28534881,610.28,609.61,1.08878136]
[1743542970273,0.30136827,610.27,609.61,1.08878136]
[1743542970779,0.30136827,610.27,609.62,1.08878136]
[1743542971476,0.30136827,610.27,609.63,1.08878136]
[1743542972175,0.30136827,610.27,609.64,1.08878136]
[1743542972378,0.30136827,610.29,609.65,1.08878136]
[1743542972679,0.995,610.3,609.51,0.32813243]
[1743542972680,0.28534297,610.26,609.66,1.08878136]
[1743542972878,0.30136827,610.25,609.66,1.08878136]
[1743542973578,0.30136827,610.25,609.67,1.08878136]
[1743542974180,0.30136827,610.25,609.68,1.08878136]
[1743542974781,0.30136827,610.25,609.69,1.08878136]
[1743542975678,0.30136827,610.25,609.7,1.08878136]
[1743542976278,0.30136827,610.25,609.71,1.08878136]
[1743542976484,0.3013711,610.24,609.71,1.08878136]
[1743542976681,0.3013711,610.23,609.72,1.08878136]
[1743542976881,0.3013711,610.22,609.72,1.08878136]
[1743542977181,0.3013711,610.21,609.73,1.08878136]
[1743542977377,0.3013711,610.25,609.73,1.08878136]
[1743542977580,0.3013711,610.24,609.73,1.08878136]
[1743542977780,0.3013711,610.23,609.74,1.08878136]
[1743542977984,0.28534297,610.26,609.74,1.08878136]
[1743542978283,0.3013708,610.25,609.74,1.08878136]
[1743542978483,0.3013708,610.24,609.75,1.08878136]
[1743542978686,0.3013708,610.23,609.75,1.08878136]
[1743542978879,0.3013708,610.22,609.75,1.08878136]
[1743542979078,0.3013708,610.21,609.76,1.08878136]
[1743542979379,0.3013708,610.2,609.76,1.08878136]
[1743542979583,0.3013708,610.24,609.77,1.08878136]
[1743542979881,0.3013708,610.23,609.77,1.08878136]
[1743542980082,0.3013708,610.24,609.77,1.08878136]
[1743542980383,0.3013708,610.24,609.51,0.32813243]
[1743542980384,0.3013708,610.23,609.78,1.08878136]
[1743542980678,0.3013708,610.22,609.78,1.08878136]
[1743542980879,0.3013708,610.21,609.78,1.08878136]
[1743542981079,0.3013708,610.2,609.78,1.08878136]
[1743542981282,0.3013714,610.19,609.78,1.08878136]
[1743542981479,0.94,610.26,609.78,1.08878136]
[1743542981681,0.28533478,610.19,609.78,1.08878136]
[1743542983786,0.30137128,610.18,609.79,1.08878136]
[1743542984184,0.30137128,610.18,609.8,1.08878136]
[1743542984380,0.30137128,610.25,609.8,1.08878136]
[1743542984578,0.28533127,610.17,609.8,1.08878136]
[1743542984782,0.28533127,610.17,609.81,1.08878136]
[1743542984980,0.94,610.26,609.81,1.08878136]
[1743542985184,0.30137128,610.25,609.82,1.08878136]
[1743542985686,0.30137128,610.25,609.83,1.08878136]
[1743542985987,0.28532893,610.24,609.83,1.08878136]
[1743542986184,0.30137128,610.23,609.83,1.08878136]
[1743542986381,0.28532893,610.24,609.84,1.08878136]
[1743542987186,0.94,610.26,609.85,1.08878136]
[1743542987686,0.28532542,610.25,609.86,1.08878136]
[1743542988288,0.28532542,610.25,609.87,1.08878136]
[1743542988690,0.28532542,610.25,609.88,1.08878136]
[1743542989090,0.28532542,610.25,609.89,1.08878136]
[1743542989591,0.28532542,610.25,609.9,1.08878136]
[1743542989886,0.28532542,610.25,609.91,1.08878136]
[1743542990287,0.94,610.26,609.91,1.08878136]
[1743542990484,0.94,610.26,609.92,1.08878136]
[1743542990690,0.2853184,610.24,609.92,1.08878136]
[1743542991393,0.2853184,610.24,609.93,1.08878136]
[1743542992597,0.2853184,610.24,609.94,1.08878136]
[1743542993300,0.94,610.26,609.95,1.08878136]
[1743542993701,0.28531489,610.23,609.96,1.08878136]
[1743542994101,0.28531489,610.23,609.97,1.08878136]
[1743542994900,0.28531489,610.23,609.98,1.08878136]
[1743542995704,0.28531489,610.23,609.99,1.08878136]
[1743542996303,0.28531489,610.23,610.0,1.08878136]
[1743542996799,0.28531489,610.23,609.51,0.32813243]
[1743542996800,0.28531489,610.23,610.01,1.08878136]
[1743542997302,0.28531489,610.23,610.02,1.08878136]
[1743542997702,0.28531489,610.23,610.03,1.08878136]
[1743542998502,0.28531489,610.23,610.04,1.08878136]
[1743542999303,0.94,610.26,610.05,1.08878136]
[1743542999603,0.2853032,610.22,610.06,1.08878136]
[1743543000407,0.2853032,610.22,610.07,1.08878136]
[1743543001003,0.2853032,610.22,610.08,1.08878136]
[1743543001903,0.94,610.26,610.09,1.08878136]
[1743543002307,0.94,610.26,609.51,0.32813243]
[1743543002308,0.28529852,610.21,610.1,1.08878136]
[1743543002907,0.28529852,610.21,610.11,1.08878136]
[1743543003706,0.28529852,610.21,610.12,1.08878136]
[1743543004209,0.28529852,610.21,610.13,1.08878136]
[1743543004607,0.28529852,610.21,609.51,0.32813243]
[1743543004608,0.28529852,610.21,610.14,1.08878136]
[1743543005310,0.94,610.26,610.15,1.08878136]
[1743543005506,0.30137351,610.25,610.15,1.08878136]
[1743543005706,0.2852915,610.2,610.15,1.08878136]
[1743543005908,0.30137351,610.19,610.16,1.08878136]
[1743543006508,0.30137351,610.19,610.17,1.08878136]
[1743543007313,0.30137351,610.19,610.18,1.08878136]
[1743543007706,0.30137315,610.19,610.18,1.08878136]
[1743543008407,0.30137315,610.44,610.18,1.08878136]
[1743543008613,0.28526461,610.19,610.18,1.08878136]
[1743543009013,0.714,610.45,610.18,1.08878136]
[1743543009014,0.30137315,610.41,610.18,1.08878136]
[1743543009314,0.30137315,610.4,609.51,0.32813243]
[1743543009514,0.30137315,610.39,609.51,0.32813243]
[1743543009710,0.28537689,610.39,609.52,1.09036406]
[1743543009911,0.30137315,610.38,609.52,1.09036406]
[1743543010107,0.30137315,610.38,609.53,1.09036406]
[1743543010511,0.30137315,610.38,609.54,1.09036406]
[1743543010711,0.931,610.37,609.54,1.09036406]
[1743543010913,0.30137315,610.36,609.55,1.09036406]
[1743543011315,0.909,610.35,609.55,1.09036406]
[1743543011514,0.30137315,610.34,609.56,1.09036406]
[1743543011916,0.30137315,610.34,609.57,1.09036406]
[1743543012615,0.30137315,610.34,609.58,1.09036406]
[1743543013714,0.30137315,610.34,609.59,1.09036406]
[1743543013914,1.19434764,610.35,609.59,1.09036406]
[1743543014109,0.30137688,610.34,609.59,1.09036406]
[1743543014315,0.30137688,610.34,609.6,1.09036406]
[1743543014516,0.30137688,610.34,609.61,1.09036406]
[1743543014715,0.2853453,610.33,609.61,1.09036406]
[1743543015015,0.30137688,610.32,609.62,1.09036406]
[1743543015416,0.30137688,610.32,609.63,1.09036406]
[1743543015617,0.3013756,610.31,609.63,1.09036406]
[1743543015920,0.2853453,610.33,609.64,1.09036406]
[1743543015921,0.3013756,610.3,609.64,1.09036406]
[1743543016110,0.3013756,610.29,609.64,1.09036406]
[1743543016315,0.3013756,610.32,609.64,1.09036406]
[1743543016516,0.3013756,610.31,609.64,1.09036406]
[1743543016815,0.3013756,610.3,609.65,1.09036406]
[1743543017015,0.3013756,610.32,609.65,1.09036406]
[1743543017212,0.30142597,610.31,609.66,1.09036406]
[1743543017416,0.30142597,610.34,609.66,1.09036406]
[1743543017613,0.28537455,610.3,609.67,1.09036406]
[1743543017819,0.30142597,610.29,609.67,1.09036406]
[1743543018118,0.30142597,610.29,609.68,1.09036406]
[1743543018719,0.79,610.28,609.69,1.09036406]
[1743543018918,0.30142597,610.27,609.69,1.09036406]
[1743543019123,0.30142597,610.27,609.7,1.09036406]
[1743543019723,0.30142597,610.27,609.71,1.09036406]
[1743543019924,0.30142597,610.27,609.72,1.09036406]
[1743543020423,0.30142597,610.27,609.73,1.09036406]
[1743543020620,0.28537572,610.26,609.73,1.09036406]
[1743543020817,0.30142597,610.25,609.73,1.09036406]
[1743543021223,0.30142597,610.25,609.74,1.09036406]
[1743543022018,0.30142597,610.25,609.75,1.09036406]
[1743543022422,0.30142597,610.25,609.76,1.09036406]
[1743543023425,0.30142597,610.27,609.76,1.09036406]
[1743543023625,0.30142597,610.26,609.77,1.09036406]
[1743543023825,0.30142597,610.25,609.77,1.09036406]
[1743543024026,0.28537104,610.25,609.77,1.09036406]
[1743543024323,0.30142597,610.24,609.78,1.09036406]
[1743543025122,0.30143083,610.23,609.79,1.09036406]
[1743543025327,0.30143083,610.22,609.79,1.09036406]
[1743543025527,0.30143083,610.21,609.79,1.09036406]
[1743543025725,0.30143083,610.2,609.8,1.09036406]
[1743543025925,0.30143083,610.19,609.8,1.09036406]
[1743543026228,0.30143083,610.18,609.81,1.09036406]
[1743543026428,0.30143083,610.17,609.81,1.09036406]
[1743543026628,0.30143083,610.16,609.81,1.09036406]
[1743543026823,0.30143083,610.15,609.81,1.09036406]
[1743543027022,0.30143083,610.17,609.81,1.09036406]
[1743543027224,0.30143083,610.16,609.82,1.09036406]
[1743543027422,0.30143083,610.15,609.82,1.09036406]
[1743543027629,0.30143083,610.17,609.83,1.09036406]
[1743543027824,0.30143083,610.16,609.83,1.09036406]
[1743543028031,0.28536987,610.18,609.84,1.09036406]
[1743543028032,0.30143083,610.15,609.84,1.09036406]
[1743543028230,0.30143083,610.17,609.84,1.09036406]
[1743543028430,0.30143083,610.16,609.84,1.09036406]
[1743543028634,0.30143083,610.17,609.85,1.09036406]
[1743543028930,0.28536987,610.18,609.85,1.09036406]
[1743543028931,0.30143083,610.16,609.85,1.09036406]
[1743543029132,0.30143083,610.15,609.86,1.09036406]
[1743543029325,0.30143083,610.14,609.86,1.09036406]
[1743543029527,0.30143083,610.17,609.86,1.09036406]
[1743543029732,0.30143083,610.16,609.86,1.09036406]
[1743543029931,0.30143083,610.17,609.87,1.09036406]
[1743543030132,0.30143083,610.16,609.87,1.09036406]
[1743543030326,0.30143083,610.15,609.87,1.09036406]
[1743543030531,0.30143083,610.14,609.87,1.09036406]
[1743543030727,0.30143083,610.13,609.88,1.09036406]
[1743543031030,0.30143083,610.12,609.88,1.09036406]
[1743543031226,0.30143083,610.17,609.89,1.09036406]
[1743543031827,0.30143083,610.17,609.9,1.09036406]
[1743543032229,0.30143083,610.17,609.91,1.09036406]
[1743543032431,0.30143083,610.16,609.91,1.09036406]
[1743543032728,0.30143083,610.15,609.92,1.09036406]
[1743543033132,0.30143879,610.14,609.93,1.09036406]
[1743543033434,0.30143879,610.13,609.94,1.09036406]
[1743543033629,0.28536636,610.16,609.94,1.09036406]
[1743543033630,0.30143879,610.15,609.94,1.09036406]
[1743543033833,0.28536636,610.16,609.95,1.09036406]
[1743543033834,0.30143879,610.14,609.95,1.09036406]
[1743543034132,0.30143879,610.13,609.95,1.09036406]
[1743543034333,0.30143879,610.15,609.95,1.09036406]
[1743543034536,0.30143879,610.14,609.96,1.09036406]
[1743543034734,0.30143879,610.13,609.96,1.09036406]
[1743543034936,0.30143879,610.15,609.96,1.09036406]
[1743543035130,0.30143879,610.14,609.96,1.09036406]
[1743543035336,0.30143879,610.13,609.96,1.09036406]
[1743543035536,0.30143879,610.12,609.97,1.09036406]
[1743543035734,0.30143879,610.11,609.98,1.09036406]
[1743543035930,0.30143879,610.1,609.98,1.09036406]
[1743543036133,0.30143879,610.09,609.98,1.09036406]
[1743543036336,0.30143879,610.09,609.99,1.09036406]
[1743543036537,0.30143879,610.08,609.99,1.09036406]
[1743543036836,0.30143879,610.07,610.0,1.09036406]
[1743543037037,0.30143879,610.06,610.0,1.09036406]
[1743543037435,0.30143879,610.06,609.02,1.21620832]
[1743543037436,0.30143879,610.05,610.01,1.09036406]
[1743543037631,0.30143879,610.04,610.01,1.09036406]
[1743543037931,0.3014333,610.03,610.02,1.09036406]
[1743543038238,0.3014333,610.12,610.02,1.09036406]
[1743543038538,0.3014333,610.11,610.02,1.09036406]
[1743543038837,0.3014333,610.11,609.03,1.21620832]
[1743543038838,0.3014333,610.1,610.03,1.09036406]
[1743543039039,0.3014333,610.09,610.03,1.09036406]
[1743543039240,0.3014333,610.08,610.03,1.09036406]
[1743543039433,0.3014333,610.26,610.04,1.09036406]
[1743543039638,0.3014333,610.25,610.04,1.09036406]
[1743543039841,0.28534063,610.07,610.04,1.09036406]
[1743543040039,0.3014333,610.06,610.05,1.09036406]
[1743543040433,0.58677393,610.06,610.05,1.09036406]
[1743543041136,0.28534063,610.06,610.05,1.09036406]
[1743543041338,0.3014333,610.28,610.05,1.09036406]
[1743543041539,0.3014333,610.27,610.05,1.09036406]
[1743543041738,0.28533595,610.06,610.05,1.09036406]
[1743543041940,0.3014333,610.27,610.05,1.09036406]
[1743543042141,0.707,610.29,610.05,1.09036406]
[1743543042142,0.3014333,610.26,610.05,1.08131922]
[1743543042337,0.28536285,610.06,609.11,1.21620832]
[1743543042538,0.3014333,610.05,609.13,1.21620832]
[1743543042740,0.882,610.04,609.13,1.21620832]
[1743543042940,0.3014333,610.03,609.13,1.21620832]
[1743543044140,0.3014333,610.03,609.0,1.21620832]
[1743543044442,0.30146532,610.02,609.0,1.21620832]
[1743543044640,0.28549864,610.02,609.0,1.21620832]
[1743543044840,0.30146532,610.01,609.0,1.21620832]
[1743543046143,0.30146532,610.0,609.0,1.21620832]
[1743543046441,0.30146532,609.99,608.98,1.21620832]
[1743543046636,0.30146532,609.98,608.98,1.21620832]
[1743543046837,0.30146532,609.97,608.99,0.32841261]
[1743543047142,0.30146532,609.96,608.99,0.32841261]
[1743543047443,1.845,610.04,608.99,0.32841261]
[1743543047642,0.28551855,609.96,608.99,0.32841261]
[1743543048038,1.845,610.04,608.99,0.32841261]
[1743543048236,0.30146562,610.03,608.99,0.32841261]
[1743543048742,0.30146562,610.03,608.99,1.54462093]
[1743543048945,0.28551621,610.02,608.99,1.54462093]
[1743543049143,0.30146562,610.01,608.99,1.54462093]
[1743543050345,0.895,610.0,608.99,1.54462093]
[1743543050548,0.30146562,609.99,609.01,1.21620832]
[1743543050744,0.30146562,609.99,609.02,0.32839644]
[1743543051045,1.18051738,610.0,609.02,0.32839644]
[1743543051947,0.30146505,609.99,609.04,1.21620832]
[1743543052144,0.30146505,609.99,609.05,0.32838026]
[1743543054142,0.30146505,609.98,609.05,0.32838026]
[1743543054342,1.18051738,610.0,609.07,1.21620832]
[1743543054551,1.18051738,610.0,609.08,0.32836409]
[1743543054756,0.30146558,609.99,609.08,0.32836409]
[1743543055347,0.30146558,609.99,609.09,1.08708065]
[1743543055647,0.30146558,609.99,609.1,1.08708065]
[1743543056147,0.30146558,609.99,609.08,1.54457241]
[1743543056148,0.30146558,609.99,609.11,1.08708065]
[1743543056651,0.28550566,609.98,609.12,1.08708065]
[1743543056951,0.30146558,609.97,609.12,1.08708065]
[1743543057353,0.664,609.96,609.13,1.08708065]
[1743543057653,0.664,609.96,609.14,1.08708065]
[1743543058548,0.664,609.96,609.15,1.08708065]
[1743543059052,0.664,609.96,609.16,1.08708065]
[1743543059650,0.28550449,609.95,609.16,1.08708065]
[1743543059845,0.28550449,609.95,609.17,1.08708065]
[1743543060450,0.28550449,609.95,609.18,1.08708065]
[1743543061454,0.28550449,609.95,609.19,1.08708065]
[1743543062058,0.28550449,609.95,609.2,1.08708065]
[1743543062256,0.664,609.96,609.2,1.08708065]
[1743543062651,0.28550684,609.95,609.21,1.08708065]
[1743543063259,0.28550684,609.95,609.22,1.08708065]
[1743543063955,0.28550684,609.95,609.23,1.08708065]
[1743543064457,0.28550684,609.95,609.24,1.08708065]
[1743543065360,0.664,609.96,609.24,1.08708065]
[1743543065659,0.28550215,609.94,609.25,1.08708065]
[1743543065859,0.28550215,609.94,609.08,0.32836409]
[1743543065860,0.28550215,609.94,609.26,1.08708065]
[1743543066454,0.28550215,609.94,609.27,1.08708065]
[1743543067056,0.28550215,609.94,609.28,1.08708065]
[1743543067457,0.28550215,609.94,609.29,1.08708065]
[1743543067857,0.28550215,609.94,609.08,0.32836409]
[1743543067858,0.28550215,609.94,609.3,1.08708065]
[1743543068260,0.902,609.95,609.3,1.08708065]
[1743543068658,0.28547873,609.94,609.31,1.08708065]
[1743543069060,0.28547873,609.94,609.32,1.08708065]
[1743543069562,0.28547873,609.94,609.33,1.08708065]
[1743543070264,0.28547873,609.94,609.34,1.08708065]
[1743543070665,0.28547873,609.94,609.35,1.08708065]
[1743543071267,1.99,609.95,609.35,1.08708065]
[1743543071467,1.99,609.95,609.36,1.08708065]
[1743543071668,0.28546936,609.93,609.36,1.08708065]
[1743543072162,0.28546936,609.93,609.37,1.08708065]
[1743543072564,0.28546936,609.93,609.38,1.08708065]
[1743543073369,0.28546936,609.93,609.39,1.08708065]
[1743543073868,0.28546936,609.93,609.4,1.08708065]
[1743543074269,1.99,609.95,609.4,1.08708065]
[1743543074471,1.99,609.95,609.08,0.32836409]
[1743543074472,1.99,609.95,609.41,1.08708065]
[1743543074770,0.28545648,609.94,609.41,1.08708065]
[1743543075372,0.28545648,609.94,609.42,1.08708065]
[1743543075774,0.28545648,609.94,609.43,1.08708065]
[1743543076471,0.28545648,609.94,609.44,1.08708065]
[1743543077072,0.28545648,609.94,609.08,0.32836409]
[1743543077073,0.28545648,609.94,609.45,1.08708065]
[1743543077268,1.99,609.95,609.45,1.08708065]
[1743543077774,0.28545063,609.93,609.46,1.08708065]
[1743543078370,0.28545063,609.93,609.47,1.08708065]
[1743543078769,0.28545063,609.93,609.48,1.08708065]
[1743543079469,0.28545063,609.93,609.49,1.08708065]
[1743543079871,0.28545063,609.93,609.5,1.08708065]
[1743543080272,1.99,609.95,609.5,1.08708065]
[1743543080672,0.28544478,609.94,609.51,1.08708065]
[1743543081175,0.28544478,609.94,609.52,1.08708065]
[1743543081974,0.28544478,609.94,609.53,1.08708065]
[1743543082568,0.28544478,609.94,609.54,1.08708065]
[1743543082968,0.28544478,609.94,609.55,1.08708065]
[1743543083374,0.902,609.95,609.55,1.08708065]
[1743543083672,0.28543892,609.93,609.55,1.08708065]
[1743543083974,0.28543892,609.93,609.56,1.08708065]
[1743543084476,0.28543892,609.93,609.57,1.08708065]
[1743543085176,0.28543892,609.93,609.58,1.08708065]
[1743543085774,0.28543892,609.93,609.59,1.08708065]
[1743543086174,0.902,609.95,609.59,1.08708065]
[1743543086371,0.28543424,609.92,609.59,1.08708065]
[1743543086575,0.28543424,609.92,609.6,1.08708065]
[1743543086979,0.28543424,609.92,609.61,1.08708065]
[1743543087372,0.28543424,609.92,609.62,1.08708065]
[1743543087973,0.28543424,609.92,609.63,1.08708065]
[1743543088683,0.28543424,609.92,609.64,1.08708065]
[1743543089176,0.28543424,609.92,609.65,1.08708065]
[1743543089377,0.902,609.95,609.65,1.08708065]
[1743543089780,0.28542722,609.92,609.66,1.08708065]
[1743543090174,0.28542722,609.92,609.67,1.08708065]
[1743543090978,0.28542722,609.92,609.68,1.08708065]
[1743543091677,0.28542722,609.92,609.69,1.08708065]
[1743543092283,0.858,609.97,609.69,1.08708065]
[1743543092480,0.30145406,609.96,609.7,1.08708065]
[1743543092680,0.58687426,609.96,609.7,1.08708065]
[1743543092877,0.2854202,609.96,609.7,1.08708065]
[1743543093077,0.30145406,609.95,609.7,1.08708065]
[1743543093283,0.30145406,609.95,609.71,1.08708065]
[1743543093984,0.30145406,609.95,609.72,1.08708065]
[1743543094979,0.30145406,609.95,609.73,1.08708065]
[1743543095183,0.30145406,609.95,609.74,1.08708065]
[1743543095584,0.30145406,609.96,609.74,1.08708065]
[1743543095785,0.28541551,609.94,609.74,1.08708065]
[1743543095986,0.28541551,609.94,609.75,1.08708065]
[1743543096388,0.28541551,609.94,609.76,1.08708065]
[1743543096887,0.28541551,609.94,609.77,1.08708065]
[1743543097688,0.28541551,609.94,609.78,1.08708065]
[1743543098289,0.858,609.97,609.79,1.08708065]
[1743543098790,0.28540966,609.93,609.8,1.08708065]
[1743543099486,0.28540966,609.93,609.81,1.08708065]
[1743543100091,0.28540966,609.93,609.82,1.08708065]
[1743543100892,0.28540966,609.93,609.83,1.08708065]
[1743543101293,1.089,610.05,609.83,1.08708065]
[1743543101488,1.089,610.05,609.84,1.08708065]
[1743543101689,0.28539445,610.04,609.84,1.08708065]
[1743543101893,0.28539445,610.04,609.85,1.08708065]
[1743543102292,0.28539445,610.04,609.86,1.08708065]
[1743543103087,0.28539445,610.04,609.87,1.08708065]
[1743543103588,0.28539445,610.04,609.88,1.08708065]
[1743543104189,1.089,610.05,609.89,1.08708065]
[1743543104794,0.28538743,610.04,609.89,1.08708065]
[1743543107193,0.789,610.19,609.89,1.08708065]
[1743543107395,0.30145938,610.18,609.89,1.08708065]
[1743543107598,0.30145938,610.18,609.9,1.08708065]
[1743543107796,0.58684681,610.18,609.9,1.08708065]
[1743543107990,0.30145938,610.17,609.9,1.08708065]
[1743543108190,0.30145938,610.17,609.91,1.08708065]
[1743543108795,0.30145938,610.17,609.92,1.08708065]
[1743543109196,0.30145938,610.17,609.93,1.08708065]
[1743543109992,0.30145938,610.17,609.94,1.08708065]
[1743543110191,0.30148216,610.16,609.95,1.08708065]
[1743543110394,0.30148216,610.17,609.95,1.08708065]
[1743543110597,0.30148216,610.16,609.95,1.08708065]
[1743543110897,0.58686373,610.15,609.96,1.08708065]
[1743543111096,0.30148216,610.14,609.96,1.08708065]
[1743543111292,0.30148216,610.14,609.97,1.08708065]
[1743543111695,0.28538157,610.15,609.97,1.08708065]
[1743543111893,0.30148246,610.14,609.98,1.08708065]
[1743543112493,0.30148246,610.14,609.99,1.08708065]
[1743543113101,0.30148246,610.14,610.0,1.08708065]
[1743543113396,0.30148256,610.13,610.0,1.08708065]
[1743543113593,0.30148256,610.12,610.0,1.08708065]
[1743543113798,0.30148256,610.12,609.08,0.32836409]
[1743543113799,0.30148256,610.12,610.01,1.08708065]
[1743543114194,0.30148256,610.12,609.08,0.32836409]
[1743543114703,0.30148256,610.12,609.09,1.09025162]
[1743543114903,0.30148256,610.12,609.1,0.3283533]
[1743543115103,0.30148256,610.12,609.11,1.09025162]
[1743543115698,0.803,610.11,609.12,1.09025162]
[1743543116003,0.30148256,610.1,609.12,1.09025162]
[1743543116304,0.30148256,610.1,609.13,1.09025162]
[1743543116497,0.30148278,610.09,609.13,1.09025162]
[1743543116701,0.30148278,610.1,609.13,1.09025162]
[1743543116899,0.30148278,610.09,609.14,1.09025162]
[1743543117101,0.803,610.11,609.14,1.09025162]
[1743543117102,0.30148278,610.1,609.14,1.09025162]
[1743543117302,0.30148278,610.09,609.15,1.09025162]
[1743543117504,0.30148278,610.1,609.15,1.09025162]
[1743543117708,0.30148278,610.09,609.15,1.09025162]
[1743543117904,0.30148278,610.1,609.16,1.09025162]
[1743543118105,0.30148278,610.09,609.16,1.09025162]
[1743543118303,0.30148278,610.08,609.16,1.09025162]
[1743543118503,0.30148278,610.07,609.17,1.09025162]
[1743543118706,0.30148278,610.1,609.17,1.09025162]
[1743543118903,0.30148278,610.09,609.17,1.09025162]
[1743543119106,0.30148278,610.08,609.18,1.09025162]
[1743543119306,0.30148278,610.07,609.18,1.09025162]
[1743543119508,0.30148278,610.06,609.19,1.09025162]
[1743543119710,0.30148278,610.05,609.19,1.09025162]
[1743543119912,0.30148278,610.04,609.19,1.09025162]
[1743543120107,0.30148278,610.1,609.2,1.09025162]
[1743543120410,0.30148278,610.09,609.2,1.09025162]
[1743543120611,0.30148278,610.1,609.2,1.09025162]
[1743543120806,0.30148278,610.08,609.21,1.09025162]
[1743543121012,0.30148278,610.07,609.21,1.09025162]
[1743543121312,0.30148278,610.06,609.21,1.09025162]
[1743543121512,0.30148278,610.05,609.22,1.09025162]
[1743543121707,0.803,610.11,609.22,1.09025162]
[1743543121708,0.30148278,610.04,609.22,1.09025162]
[1743543121907,0.30148278,610.03,609.22,1.09025162]
[1743543122110,0.30148278,610.1,609.23,1.09025162]
[1743543122309,0.30148813,610.09,609.23,1.09025162]
[1743543122512,0.30148813,610.1,609.24,1.09025162]
[1743543122714,0.28547873,610.08,609.24,1.09025162]
[1743543122912,0.30148813,610.07,609.24,1.09025162]
[1743543123109,0.28547873,610.08,609.25,1.09025162]
[1743543123312,0.30149052,610.07,609.25,1.09025162]
[1743543124116,0.30149052,610.07,609.26,1.09025162]
[1743543124413,0.30149052,610.07,609.27,1.09025162]
[1743543124819,0.30149052,610.07,609.28,1.09025162]
[1743543125412,0.30149052,610.07,609.29,1.09025162]
[1743543125816,0.30149052,610.07,609.3,1.09025162]
[1743543126116,0.30149052,610.07,609.31,1.09025162]
[1743543126911,0.28547873,610.08,609.31,1.09025162]
[1743543127119,0.30148665,610.07,609.32,1.09025162]
[1743543127817,0.30148665,610.07,609.33,1.09025162]
[1743543128315,1.20348665,610.07,609.33,1.09025162]
[1743543128613,0.902,610.07,609.34,1.09025162]
[1743543129018,0.902,610.07,609.35,1.09025162]
[1743543129615,0.902,610.07,609.36,1.09025162]
[1743543130110,0.902,610.07,609.37,1.09025162]
[1743543130817,0.902,610.07,609.38,1.09025162]
[1743543131719,0.902,610.07,609.39,1.09025162]
[1743543132713,0.902,610.07,609.4,1.09025162]
[1743543133318,0.902,610.07,609.41,1.09025162]
[1743543133916,0.902,610.07,609.42,1.09025162]
[1743543134521,0.902,610.07,609.43,1.09025162]
[1743543134722,0.28546819,610.06,609.43,1.09025162]
[1743543135119,0.28546819,610.06,609.44,1.09025162]